bitfinex-derivatives/quotes_SOLF0:USTF0_20241230
["timestamp","ask_amount","ask_price","bid_price","bid_amount"]
[1735553911873,10.06091553,193.76,193.69,11.22051553]
[1735553912366,1.8204,193.76,193.69,2.98]
[1735553912573,2.5857,193.71,193.69,2.98]
[1735553912775,2.5857,193.71,193.65,2.98]
[1735553913675,2.5857,193.71,193.67,2.5862]
[1735553914970,15.79727924,193.75,193.64,2.5866]
[1735553915271,12.81727924,193.72,193.63,2.98]
[1735553915472,2.5859,193.69,193.65,2.5864]
[1735553915678,2.5859,193.69,193.63,2.98]
[1735553915971,2.5859,193.69,193.64,2.5865]
[1735553916176,2.586,193.68,193.63,2.98]
[1735553917078,1.7876,193.71,193.63,2.98]
[1735553917579,1.7876,193.71,193.67,2.5861]
[1735553917978,1.7876,193.71,193.63,2.98]
[1735553918474,1.7876,193.71,193.65,2.5864]
[1735553918673,2.5856,193.72,193.63,2.98]
[1735553919677,2.5856,193.72,193.67,2.5861]
[1735553920480,2.5856,193.72,193.68,2.5859]
[1735553920778,2.5854,193.73,193.63,2.98]
[1735553921575,2.5854,193.73,193.68,2.5859]
[1735553921972,2.5855,193.72,193.68,2.5859]
[1735553924977,2.5859,193.7,193.65,2.5863]
[1735553925178,2.5859,193.7,193.65,5.5663]
[1735553925373,12.81727924,193.75,193.65,2.98]
[1735553925586,12.81727924,193.72,193.65,2.98]
[1735553925781,15.79727924,193.72,193.6,1.7295]
[1735553925975,15.79727924,193.72,193.59,2.98]
[1735553926680,2.5862,193.67,193.63,2.5866]
[1735553927088,15.79727924,193.72,193.59,2.98]
[1735553927282,15.79727924,193.72,193.6,3.0]
[1735553928383,2.98,193.72,193.6,15.81727924]
[1735553929285,2.5863,193.67,193.6,15.81727924]
[1735553929590,2.5863,193.67,193.62,2.5868]
[1735553929782,2.5866,193.64,193.58,3.5174]
[1735553930086,2.5866,193.64,193.6,3.0]
[1735553930282,12.81727924,193.7,193.6,3.0]
[1735553930488,2.5869,193.62,193.58,3.0]
[1735553930685,12.81727924,193.67,193.56,2.5876]
[1735553930885,15.81727924,193.67,193.55,3.0]
[1735553931085,5.315,193.69,193.58,12.81727924]
[1735553931488,5.315,193.69,193.62,2.5867]
[1735553931785,3.5737,193.69,193.61,3.0]
[1735553932090,1.7262,193.69,193.65,2.5863]
[1735553932389,2.5859,193.69,193.64,8.20656866]
[1735553933585,2.5859,193.69,193.66,2.5863]
[1735553934088,2.586,193.68,193.65,2.5864]
[1735553935481,2.5859,193.69,193.65,2.5864]
[1735553937990,2.5859,193.69,193.64,8.20656866]
[1735553938196,2.5859,193.69,193.66,2.5863]
[1735553939890,2.5859,193.69,193.64,8.20656866]
[1735553939891,2.5861,193.68,193.64,2.5865]
[1735553940186,8.20656866,193.69,193.62,8.20656866]
[1735553940587,8.20656866,193.69,193.66,2.5862]
[1735553940991,8.20656866,193.69,193.62,8.20656866]
[1735553941691,8.20656866,193.69,193.61,3.0]
[1735553941692,8.20656866,193.71,193.64,8.20656866]
[1735553941894,8.20656866,193.73,193.66,8.20656866]
[1735553942093,8.20656866,193.73,193.67,3.0]
[1735553943394,8.20656866,193.73,193.71,2.5856]
[1735553943993,10.79146866,193.77,193.74,2.5852]
[1735553944183,8.20656866,193.77,193.74,2.5852]
[1735553944388,8.97785732,193.8,193.67,4.8198]
[1735553944389,8.20656866,193.79,193.72,11.20656866]
[1735553944791,10.79126866,193.79,193.75,2.585]
[1735553945591,2.5847,193.78,193.75,2.585]
[1735553947093,2.5851,193.75,193.71,2.5856]
[1735553947397,10.79166866,193.75,193.71,2.5856]
[1735553948292,10.79166866,193.75,193.7,2.5857]
[1735553948293,8.20656866,193.75,193.7,2.5857]
[1735553948500,8.20656866,193.72,193.66,3.0]
[1735553948703,8.20656866,193.7,193.66,3.0]
[1735553948998,2.5859,193.69,193.66,3.0]
[1735553949191,8.20656866,193.68,193.66,3.0]
[1735553949603,8.20656866,193.68,193.62,2.5867]
[1735553950503,2.5863,193.66,193.62,2.5867]
[1735553950704,8.20656866,193.66,193.61,3.0]
[1735553950904,8.20656866,193.65,193.61,5.5869]
[1735553951403,10.79296866,193.65,193.61,5.5869]
[1735553951907,10.79296866,193.65,193.61,2.5869]
[1735553952106,2.5867,193.64,193.6,8.20656866]
[1735553952303,2.5867,193.64,193.59,5.5872]
[1735553953101,10.79306866,193.65,193.6,2.5871]
[1735553954106,10.79306866,193.65,193.61,2.587]
[1735553954806,8.20656866,193.65,193.59,3.0]
[1735553955103,2.5866,193.64,193.6,2.5871]
[1735553955398,2.5869,193.62,193.59,3.0]
[1735553955602,2.5869,193.62,193.58,2.5873]
[1735553955799,8.20656866,193.61,193.55,8.20656866]
[1735553956000,8.20656866,193.61,193.56,2.5875]
[1735553957094,2.5871,193.6,193.55,8.20656866]
[1735553957301,8.20656866,193.61,193.55,2.5878]
[1735553958007,2.5871,193.6,193.55,2.5878]
[1735553958207,2.5871,193.6,193.56,2.5876]
[1735553958600,2.5871,193.6,193.55,10.79436866]
[1735553958796,2.5871,193.6,193.55,2.5878]
[1735553960006,2.5872,193.59,193.55,2.5878]
[1735553960207,8.20656866,193.61,193.55,2.5878]
[1735553960502,8.20656866,193.61,193.53,8.20656866]
[1735553960707,8.20656866,193.59,193.53,2.588]
[1735553961209,8.20656866,193.57,193.51,13.81476866]
[1735553961905,8.20656866,193.55,193.5,50.92772114]
[1735553962208,8.20656866,193.53,193.47,10.58814492]
[1735553962408,8.20656866,193.53,193.47,8.20656866]
[1735553962706,8.20656866,193.53,193.48,2.5886]
[1735553962707,10.79466866,193.53,193.48,2.5886]
[1735553964609,2.5883,193.51,193.47,2.5888]
[1735553964812,3.02,193.59,193.47,8.20656866]
[1735553965007,8.20656866,193.54,193.47,8.20656866]
[1735553965205,8.20656866,193.54,193.5,2.5884]
[1735553966010,10.79446866,193.54,193.5,2.5884]
[1735553971012,5.2713,193.63,193.49,8.20656866]
[1735553971220,8.20656866,193.6,193.53,8.20656866]
[1735553971917,8.20656866,193.6,193.57,2.5875]
[1735553972110,10.79356866,193.62,193.55,8.20656866]
[1735553972508,10.79356866,193.62,193.57,2.5875]
[1735553972912,10.79356866,193.62,193.58,2.5873]
[1735553975315,2.587,193.61,193.57,2.5875]
[1735553977713,8.20656866,193.58,193.52,3.02]
[1735553978316,10.79406866,193.58,193.53,2.5879]
[1735553978518,10.79406866,193.58,193.52,3.02]
[1735553978722,8.20656866,193.58,193.52,3.02]
[1735553980521,10.79396866,193.58,193.54,2.5879]
[1735553985221,10.79396866,193.58,193.55,2.5878]
[1735553986627,2.5874,193.58,193.55,2.5878]
[1735553986931,10.79396866,193.58,193.55,2.5878]
[1735553987321,8.20656866,193.58,193.52,3.02]
[1735553987527,8.20656866,193.6,193.53,8.20656866]
[1735553987727,8.20656866,193.62,193.55,8.20656866]
[1735553988719,2.5871,193.61,193.57,2.5875]
[1735553989126,10.79366866,193.61,193.57,2.5875]
[1735553989727,2.5871,193.6,193.57,2.5875]
[1735553991126,28.62990708,193.68,193.57,11.20656866]
[1735553991326,8.20656866,193.66,193.59,8.20656866]
[1735553992732,10.79296866,193.66,193.61,2.5869]
[1735553994032,8.20656866,193.66,193.61,2.5869]
[1735553994328,2.5865,193.65,193.61,2.5869]
[1735553995122,10.79296866,193.66,193.62,2.5867]
[1735553997132,8.20656866,193.66,193.59,8.20656866]
[1735553997333,2.5868,193.63,193.59,2.5871]
[1735553998626,5.3165,193.7,193.49,5.87921768]
[1735553998627,8.20656866,193.62,193.55,11.18656866]
[1735553999535,8.20656866,193.62,193.55,2.98]
[1735554000234,8.20656866,193.62,193.54,8.20656866]
[1735554000438,8.20656866,193.62,193.49,5.87921768]
[1735554000439,8.20656866,193.6,193.52,8.20656866]
[1735554000736,8.20656866,193.6,193.53,2.98]
[1735554002439,2.5873,193.59,193.55,2.5877]
[1735554003333,2.5873,193.59,193.53,2.98]
[1735554003334,8.20656866,193.6,193.53,2.98]
[1735554003540,10.79366866,193.6,193.56,2.5875]
[1735554006943,28.62990708,193.67,193.58,8.20656866]
[1735554007240,28.62990708,193.67,193.64,8.20656866]
[1735554007638,28.62990708,193.67,193.64,11.18656866]
[1735554007947,1.8192,193.7,193.68,2.586]
[1735554008538,10.79206866,193.72,193.68,2.586]
[1735554009234,1.7638,193.74,193.7,2.5857]
[1735554009235,9.97036866,193.74,193.7,2.5857]
[1735554009546,9.97036866,193.74,193.66,8.20656866]
[1735554009845,8.20656866,193.74,193.66,8.20656866]
[1735554010041,8.20656866,193.74,193.72,2.5854]
[1735554010239,9.92326866,193.76,193.69,2.98]
[1735554010438,8.20656866,193.76,193.7,8.20656866]
[1735554010635,8.20656866,193.76,193.73,2.5853]
[1735554010937,8.20656866,193.74,193.69,2.98]
[1735554011337,8.20656866,193.74,193.71,2.5856]
[1735554014543,8.20656866,193.74,193.69,2.98]
[1735554014544,4.3128,193.8,193.75,2.5851]
[1735554014844,4.3128,193.8,193.72,8.20656866]
[1735554014845,8.20656866,193.78,193.72,8.20656866]
[1735554015044,8.20656866,193.78,193.77,2.5848]
[1735554015839,8.20656866,193.8,193.77,2.5848]
[1735554016442,8.20656866,193.8,193.75,2.585]
[1735554016644,8.20656866,193.8,193.74,2.98]
[1735554017839,8.20656866,193.8,193.76,2.5849]
[1735554018035,8.20656866,193.8,193.74,2.98]
[1735554018445,8.20656866,193.8,193.78,2.5847]
[1735554019545,8.20656866,193.8,193.61,3.6943]
[1735554019747,10.79136866,193.78,193.69,8.20656866]
[1735554019945,10.79136866,193.78,193.7,3.06]
[1735554021048,8.20656866,193.78,193.71,8.20656866]
[1735554021544,8.20656866,193.8,193.71,8.20656866]
[1735554021951,2.5846,193.79,193.71,8.20656866]
[1735554022252,8.20656866,193.78,193.71,8.20656866]
[1735554022653,8.20656866,193.8,193.73,8.20656866]
[1735554023450,8.20656866,193.8,193.78,2.5847]
[1735554024046,1.8212,193.81,193.79,2.5846]
[1735554026861,1.8212,193.81,193.77,2.5848]
[1735554026862,8.20656866,193.8,193.77,2.5848]
[1735554031143,1.8029,193.82,193.75,11.26656866]
[1735554031349,8.20656866,193.83,193.77,8.20656866]
[1735554031755,1.7513,193.86,193.81,2.5842]
[1735554031756,10.79036866,193.85,193.81,2.5842]
[1735554032854,10.79036866,193.85,193.82,2.5842]
[1735554037853,2.5838,193.85,193.82,2.5842]
[1735554038059,2.5847,193.79,193.75,2.5851]
[1735554038259,8.20656866,193.78,193.75,2.5851]
[1735554038459,8.20656866,193.8,193.73,8.20656866]
[1735554039461,8.20656866,193.8,193.77,2.5848]
[1735554041659,10.79106866,193.8,193.77,2.5848]
[1735554046559,28.62990708,193.9,193.75,11.26656866]
[1735554046761,8.20656866,193.87,193.8,8.20656866]
[1735554047267,2.5838,193.86,193.82,2.5841]
[1735554047862,8.20656866,193.87,193.84,2.5838]
[1735554048066,8.20656866,193.87,193.8,11.26656866]
[1735554048566,8.20656866,193.87,193.84,2.5839]
[1735554053966,8.20656866,193.87,193.85,2.5837]
[1735554054273,2.5834,193.88,193.85,2.5837]
[1735554056266,13.50066866,193.89,193.86,2.5836]
[1735554062582,8.20656866,193.89,193.86,2.5836]
[1735554063183,2.5832,193.9,193.86,2.5836]
[1735554063970,7.18145732,193.94,193.84,8.20656866]
[1735554064176,7.18145732,193.94,193.92,2.5828]
[1735554064375,4.58622016,193.94,193.92,8.20656866]
[1735554064578,4.58622016,193.94,193.93,2.5827]
[1735554064983,21.44844976,193.97,193.92,8.20656866]
[1735554065179,21.44844976,193.97,193.96,2.5823]
[1735554066080,96.5822677,194.0,193.96,2.5823]
[1735554066380,2.5821,193.98,193.94,10.78906866]
[1735554067084,2.5821,193.98,193.95,2.5824]
[1735554067286,2.5819,194.0,193.95,2.5824]
[1735554067480,8.20656866,194.0,193.95,2.5824]
[1735554068482,2.582,193.99,193.95,2.5824]
[1735554069880,2.5821,193.98,193.92,8.20656866]
[1735554070182,8.20656866,194.0,193.92,8.20656866]
[1735554070776,2.5818,194.0,193.95,8.20656866]
[1735554070981,21.44844976,194.07,193.97,8.20656866]
[1735554070982,8.20656866,194.05,193.97,8.20656866]
[1735554071279,8.20656866,194.05,193.99,8.20656866]
[1735554071684,26.74874976,194.07,194.01,8.20656866]
[1735554071685,21.44844976,194.07,194.01,8.20656866]
[1735554071887,21.44844976,194.07,194.03,8.20656866]
[1735554072182,8.20656866,194.1,194.03,8.20656866]
[1735554072381,10.78716866,194.1,194.04,2.5812]
[1735554072585,8.20656866,194.06,193.98,3.06]
[1735554072783,8.20656866,194.02,193.98,3.06]
[1735554073584,8.20656866,194.02,193.98,5.642]
[1735554073787,8.20656866,194.02,193.98,3.06]
[1735554074084,10.78806866,194.02,193.98,3.06]
[1735554075989,2.5819,194.0,193.95,13.84886866]
[1735554076190,2.5819,194.0,193.95,11.26656866]
[1735554076781,2.5819,194.0,193.96,2.5823]
[1735554077690,2.5819,194.0,193.95,11.26656866]
[1735554079388,8.20656866,194.0,193.91,1.7052]
[1735554079592,8.20656866,193.96,193.78,5.1692]
[1735554079889,8.20656866,193.98,193.94,2.5825]
[1735554080095,8.20656866,193.98,193.91,8.20656866]
[1735554080287,8.20656866,193.98,193.93,8.20656866]
[1735554081392,8.20656866,193.98,193.96,2.5823]
[1735554081590,8.20656866,194.0,193.96,2.5823]
[1735554082391,3.06,194.04,193.89,3.06]
[1735554082392,3.06,194.04,193.95,8.20656866]
[1735554082587,8.20656866,194.02,193.95,11.26656866]
[1735554082789,8.20656866,194.02,193.97,8.20656866]
[1735554082992,8.20656866,194.04,193.97,8.20656866]
[1735554083994,2.5814,194.03,193.99,2.5819]
[1735554088000,10.78786866,194.04,193.99,2.5819]
[1735554088198,1.8006,194.07,194.01,8.20656866]
[1735554088409,1.8006,194.07,194.01,11.26656866]
[1735554089005,1.8006,194.07,194.03,2.5813]
[1735554089705,4.3815,194.07,194.03,2.5813]
[1735554091111,4.3815,194.07,194.03,2.5814]
[1735554091909,8.20656866,194.06,193.99,8.20656866]
[1735554092115,8.20656866,194.04,193.98,3.06]
[1735554092504,8.20656866,194.04,193.97,8.20656866]
[1735554092712,2.5815,194.03,193.99,2.5819]
[1735554092913,8.20656866,194.04,193.97,8.20656866]
[1735554093613,2.5816,194.02,193.97,10.78866866]
[1735554094217,2.5816,194.02,193.97,8.20656866]
[1735554094415,2.5816,194.02,193.98,2.582]
[1735554094917,2.5816,194.02,193.99,2.5819]
[1735554095111,8.20656866,194.04,193.99,2.5819]
[1735554095617,1.8006,194.07,193.98,2.582]
[1735554095819,8.20656866,194.03,193.98,2.582]
[1735554096420,8.20656866,194.03,194.0,2.5817]
[1735554096916,2.5813,194.04,194.0,2.5817]
[1735554098620,2.5815,194.02,193.99,2.5819]
[1735554101218,2.5814,194.04,194.0,2.5817]
[1735554101522,8.20656866,194.05,193.98,8.20656866]
[1735554101915,10.78776866,194.05,194.0,2.5817]
[1735554102717,10.78776866,194.05,194.01,2.5816]
[1735554104512,8.20656866,194.05,193.98,8.20656866]
[1735554104712,8.20656866,194.03,193.96,8.20656866]
[1735554104909,8.20656866,194.01,193.88,8.97584351]
[1735554105115,2.5823,193.97,193.93,10.78926866]
[1735554105413,8.20656866,193.99,193.93,8.20656866]
[1735554106216,8.20656866,193.99,193.88,8.97584351]
[1735554106422,8.20656866,193.97,193.9,10.78956866]
[1735554106611,8.20656866,193.97,193.9,8.20656866]
[1735554107122,8.20656866,193.97,193.89,3.06]
[1735554107315,8.20656866,193.97,193.9,8.20656866]
[1735554107815,1.8239,194.0,193.88,8.20656866]
[1735554107816,8.20656866,193.95,193.88,8.20656866]
[1735554108016,2.5827,193.93,193.88,10.78986866]
[1735554108215,8.20656866,193.91,193.81,7.11504351]
[1735554108414,3.06,193.98,193.83,8.20656866]
[1735554108415,8.20656866,193.89,193.83,8.20656866]
[1735554109414,2.5834,193.88,193.83,10.79046866]
[1735554110019,2.5836,193.87,193.83,8.20656866]
[1735554110222,8.20656866,193.89,193.83,8.20656866]
[1735554112013,8.20656866,193.89,193.81,13.85076866]
[1735554112208,2.5836,193.87,193.81,13.85076866]
[1735554112415,8.20656866,193.87,193.81,13.85076866]
[1735554112914,2.5838,193.86,193.81,13.85076866]
[1735554113509,2.584,193.84,193.79,10.79106866]
[1735554113718,8.20656866,193.83,193.77,8.20656866]
[1735554113925,8.20656866,193.83,193.76,8.20656866]
[1735554114810,2.5843,193.81,193.76,10.79156866]
[1735554115013,8.20656866,193.83,193.76,8.20656866]
[1735554115213,2.5839,193.84,193.79,2.5846]
[1735554115617,8.20656866,193.85,193.77,8.20656866]
[1735554115819,2.5844,193.81,193.76,8.20656866]
[1735554116323,2.5842,193.82,193.76,8.20656866]
[1735554116824,2.5842,193.82,193.78,8.20656866]
[1735554118617,2.5842,193.82,193.77,2.5847]
[1735554120819,8.20656866,193.83,193.76,8.20656866]
[1735554121123,2.5846,193.8,193.74,13.85176866]
[1735554121323,8.20656866,193.83,193.74,13.85176866]
[1735554121518,3.6455,193.82,193.74,13.85176866]
[1735554121718,8.20656866,193.81,193.74,13.85176866]
[1735554121921,8.20656866,193.81,193.72,10.79196866]
[1735554122122,8.20656866,193.79,193.72,10.79196866]
[1735554123022,2.585,193.76,193.72,10.79196866]
[1735554123614,2.585,193.76,193.72,2.5854]
[1735554124625,1.7216,193.81,193.71,11.26656866]
[1735554124626,10.79166866,193.75,193.71,2.5856]
[1735554125024,8.20656866,193.75,193.69,8.20656866]
[1735554125225,8.20656866,193.75,193.68,5.646]
[1735554126529,2.5855,193.72,193.68,5.646]
[1735554127827,2.5855,193.72,193.68,2.586]
[1735554128727,8.20656866,193.75,193.67,8.20656866]
[1735554128932,8.20656866,193.71,193.65,8.20656866]
[1735554129226,1.7216,193.81,193.51,7.11504351]
[1735554129227,8.20656866,193.67,193.59,8.20656866]
[1735554129425,2.5867,193.64,193.59,10.79366866]
[1735554129626,8.20656866,193.63,193.57,8.20656866]
[1735554130033,2.5869,193.62,193.57,10.79396866]
[1735554130725,8.20656866,193.63,193.57,2.5874]
[1735554130930,1.8641,193.7,193.55,2.5878]
[1735554130931,8.20656866,193.61,193.55,2.5878]
[1735554131325,8.20656866,193.61,193.55,8.20656866]
[1735554131525,8.20656866,193.61,193.56,2.5876]
[1735554132127,2.5872,193.6,193.56,2.5876]
[1735554132330,8.20656866,193.61,193.55,10.79436866]
[1735554132526,8.20656866,193.61,193.55,2.5878]
[1735554133530,2.5873,193.59,193.55,2.5878]
[1735554134029,2.5873,193.59,193.54,2.5879]
[1735554135033,2.5874,193.58,193.54,2.5879]
[1735554135824,8.20656866,193.59,193.36,53.74]
[1735554136030,2.5877,193.56,193.51,2.5883]
[1735554138535,2.5878,193.55,193.48,3.08]
[1735554138729,8.20656866,193.55,193.49,10.79506866]
[1735554138931,8.20656866,193.53,193.27,28.46017406]
[1735554139127,2.5886,193.49,193.45,2.5891]
[1735554139338,3.4906,193.54,193.45,2.5891]
[1735554139339,3.08,193.53,193.45,8.20656866]
[1735554139633,1.7789,193.54,193.49,8.20656866]
[1735554139838,1.7789,193.54,193.47,10.79536866]
[1735554140233,2.5879,193.54,193.45,15.92377978]
[1735554141637,2.5879,193.54,193.48,2.5886]
[1735554142331,12.84377978,193.58,193.48,12.84377978]
[1735554142528,3.4643,193.59,193.48,12.84377978]
[1735554142931,2.5875,193.58,193.52,2.5881]
[1735554143541,2.5875,193.58,193.53,2.588]
[1735554145544,2.5875,193.58,193.54,2.5879]
[1735554145751,4.2786,193.6,193.5,3.08]
[1735554146245,1.6915,193.6,193.54,2.5879]
[1735554146846,2.5873,193.59,193.5,3.08]
[1735554147039,2.5873,193.59,193.55,2.5877]
[1735554148449,2.5871,193.6,193.56,2.5876]
[1735554148743,3.08,193.64,193.51,12.84377978]
[1735554148744,15.92377978,193.64,193.51,12.84377978]
[1735554148943,2.5869,193.62,193.57,2.5875]
[1735554149345,2.5869,193.62,193.51,12.84377978]
[1735554149646,15.92377978,193.64,193.58,2.5874]
[1735554150142,12.84377978,193.64,193.58,2.5874]
[1735554150348,3.08,193.66,193.51,12.84377978]
[1735554150549,2.5867,193.63,193.59,2.5872]
[1735554151746,2.5869,193.62,193.58,2.5874]
[1735554152839,12.84377978,193.65,193.54,3.08]
[1735554153044,12.84377978,193.65,193.57,2.5875]
[1735554153045,2.587,193.61,193.57,2.5875]
[1735554153244,12.84377978,193.65,193.54,3.08]
[1735554153848,2.5867,193.63,193.59,2.5872]
[1735554154852,12.84377978,193.65,193.54,3.08]
[1735554155047,12.84377978,193.65,193.58,2.5873]
[1735554155048,2.5869,193.62,193.58,2.5873]
[1735554155254,12.84377978,193.65,193.54,3.08]
[1735554155454,12.84377978,193.59,193.47,4.0123937]
[1735554155653,12.84377978,193.56,193.47,2.2158937]
[1735554156154,12.84377978,193.56,193.47,4.8046937]
[1735554156854,2.5883,193.52,193.47,4.8046937]
[1735554157951,12.84377978,193.53,193.47,4.8046937]
[1735554158149,2.5884,193.51,193.46,2.589]
[1735554160455,12.84377978,193.53,193.46,2.589]
[1735554160659,2.5885,193.5,193.46,2.589]
[1735554161258,2.5886,193.49,193.45,2.5891]
[1735554161461,12.84377978,193.53,193.43,3.08]
[1735554162257,8.22379526,193.5,193.46,2.589]
[1735554162560,8.22379526,193.5,193.43,11.30379526]
[1735554162762,10.81229526,193.5,193.43,11.30379526]
[1735554163854,10.81229526,193.5,193.46,2.5889]
[1735554164261,10.81209526,193.52,193.45,8.22379526]
[1735554164856,8.22379526,193.52,193.45,8.22379526]
[1735554165261,11.30379526,193.54,193.45,8.22379526]
[1735554166553,10.81169526,193.54,193.5,2.5884]
[1735554166759,8.22379526,193.56,193.47,8.22379526]
[1735554166958,2.5876,193.57,193.54,2.5879]
[1735554167158,10.81139526,193.57,193.54,2.5879]
[1735554167558,8.22379526,193.57,193.49,11.28379526]
[1735554167760,8.22379526,193.6,193.51,8.22379526]
[1735554168561,8.22379526,193.6,193.53,8.22379526]
[1735554169460,8.22379526,193.6,193.57,2.5874]
[1735554170262,8.22379526,193.6,193.58,2.5873]
[1735554170464,8.22379526,193.62,193.58,2.5873]
[1735554171463,10.81069526,193.62,193.58,2.5873]
[1735554171767,8.22379526,193.62,193.58,2.5873]
[1735554172573,2.587,193.61,193.58,2.5873]
[1735554175668,2.587,193.61,193.54,3.06]
[1735554177468,2.587,193.61,193.56,2.5876]
[1735554177969,2.587,193.61,193.57,2.5875]
[1735554180067,10.81099526,193.6,193.56,2.5876]
[1735554181163,10.81099526,193.6,193.57,2.5875]
[1735554182062,3.6404,193.63,193.53,11.26379526]
[1735554182063,2.587,193.61,193.58,2.5874]
[1735554182265,8.22379526,193.63,193.55,8.22379526]
[1735554182874,2.5869,193.62,193.55,8.22379526]
[1735554183369,2.5869,193.62,193.58,2.5873]
[1735554183571,2.5871,193.6,193.53,11.26379526]
[1735554184569,2.5867,193.64,193.57,8.22379526]
[1735554185371,2.5867,193.64,193.6,2.587]
[1735554185573,2.5867,193.64,193.59,8.22379526]
[1735554186569,2.5867,193.64,193.61,2.5869]
[1735554188980,8.22379526,193.66,193.64,2.5866]
[1735554190366,8.22379526,193.66,193.65,2.5865]
[1735554190976,8.22379526,193.66,193.59,8.22379526]
[1735554191179,8.22379526,193.66,193.63,2.5867]
[1735554191876,8.22379526,193.66,193.64,2.5866]
[1735554192278,8.22379526,193.66,193.59,8.22379526]
[1735554192477,8.22379526,193.68,193.66,2.5863]
[1735554192979,8.22379526,193.68,193.61,8.22379526]
[1735554194777,8.22379526,193.68,193.66,2.5862]
[1735554195177,8.22379526,193.68,193.61,8.22379526]
[1735554195576,8.22379526,193.68,193.67,2.5862]
[1735554196381,13.69249526,193.7,193.68,2.586]
[1735554196574,8.22379526,193.7,193.63,11.26379526]
[1735554196775,8.22379526,193.72,193.65,8.22379526]
[1735554198382,5.5422,193.76,193.7,2.5857]
[1735554198383,10.80909526,193.74,193.7,2.5857]
[1735554198581,8.22379526,193.72,193.65,8.22379526]
[1735554198773,8.22379526,193.72,193.59,1.8172]
[1735554198973,10.80969526,193.7,193.66,2.5863]
[1735554199983,10.80969526,193.7,193.62,8.22379526]
[1735554200185,10.80969526,193.7,193.67,2.5862]
[1735554200481,10.80969526,193.7,193.6,3.02]
[1735554200482,10.80929526,193.72,193.66,8.22379526]
[1735554200684,8.22379526,193.72,193.66,8.22379526]
[1735554200888,8.22379526,193.74,193.66,8.22379526]
[1735554201183,10.80909526,193.74,193.66,8.22379526]
[1735554201884,8.22379526,193.74,193.66,8.22379526]
[1735554202387,8.22379526,193.74,193.69,2.5858]
[1735554203587,2.5855,193.72,193.69,2.5858]
[1735554203789,8.22379526,193.74,193.69,2.5858]
[1735554204295,8.22379526,193.74,193.71,2.5856]
[1735554204487,5.5422,193.76,193.68,8.22379526]
[1735554204688,13.76599526,193.76,193.68,8.22379526]
[1735554206094,8.22379526,193.74,193.7,2.5857]
[1735554206587,8.22379526,193.74,193.68,8.22379526]
[1735554206788,16.35099526,193.76,193.68,8.22379526]
[1735554207190,13.76599526,193.76,193.7,2.5857]
[1735554207394,13.76599526,193.76,193.68,8.22379526]
[1735554207791,13.76599526,193.76,193.73,2.5853]
[1735554208695,16.35099526,193.76,193.73,2.5853]
[1735554209991,16.35099526,193.76,193.72,2.5855]
[1735554215393,14.52839526,193.76,193.72,2.5855]
[1735554215598,6.3046,193.76,193.73,2.5854]
[1735554215901,8.22379526,193.78,193.72,8.22379526]
[1735554216103,2.5847,193.79,193.72,8.22379526]
[1735554216403,2.5847,193.78,193.72,8.22379526]
[1735554216603,10.80849526,193.78,193.72,8.22379526]
[1735554217203,10.80849526,193.78,193.75,2.585]
[1735554218504,2.5846,193.79,193.76,2.585]
[1735554224304,10.80839526,193.79,193.76,2.585]
[1735554224807,8.22379526,193.79,193.73,3.02]
[1735554225207,8.22379526,193.83,193.76,8.22379526]
[1735554226412,2.5843,193.82,193.78,2.5847]
[1735554226708,8.22379526,193.83,193.78,2.5847]
[1735554226909,8.22379526,193.83,193.74,8.22379526]
[1735554227612,2.5845,193.8,193.76,2.5849]
[1735554227906,2.5845,193.8,193.74,8.22379526]
[1735554228408,2.5842,193.82,193.78,2.5846]
[1735554229411,2.5843,193.81,193.78,2.5846]
[1735554231014,8.22379526,193.81,193.76,2.5849]
[1735554231201,8.22379526,193.79,193.74,3.0]
[1735554232302,2.585,193.77,193.73,2.5853]
[1735554233611,2.585,193.77,193.71,11.22379526]
[1735554233814,2.585,193.77,193.74,2.5852]
[1735554235611,8.22379526,193.77,193.65,1.756]
[1735554235815,8.22379526,193.77,193.69,8.22379526]
[1735554236811,8.22379526,193.77,193.7,2.5858]
[1735554238511,2.5855,193.73,193.7,2.5858]